bitfinex/quotes_BTCUSD_20220109
["timestamp","ask_amount","ask_price","bid_price","bid_amount"]
[1641733760493,0.000111,41773.0,41770.0,0.059863]
[1641733760690,0.55,41772.0,41766.0,0.38554511]
[1641733761096,0.55,41772.0,41769.0,0.11972415]
[1641733761295,0.000215,41771.0,41769.0,0.11972415]
[1641733761692,0.000215,41771.0,41770.0,0.059863]
[1641733762093,0.69817433,41774.0,41770.0,0.119729]
[1641733762339,0.385453,41773.0,41770.0,0.059866]
[1641733762539,0.385453,41773.0,41767.0,0.1197316]
[1641733763135,0.385453,41773.0,41763.0,0.059875]
[1641733763336,0.70343086,41767.0,41761.0,0.05987784]
[1641733763537,0.70343086,41767.0,41758.0,0.25599165]
[1641733763935,0.70343086,41767.0,41761.0,0.004]
[1641733764537,0.00021088,41766.0,41761.0,0.004]
[1641733765536,0.00020689,41766.0,41761.0,0.004]
[1641733765983,0.00020689,41766.0,41761.0,0.01]
[1641733766585,0.70343086,41767.0,41761.0,0.01]
[1641733766787,0.00020689,41766.0,41761.0,0.01]
[1641733767187,0.00020689,41766.0,41760.0,0.05987897]
[1641733767587,0.70343086,41767.0,41760.0,0.05987897]
[1641733767789,0.00020689,41765.0,41760.0,0.06687897]
[1641733768788,0.00020705,41765.0,41760.0,0.06687897]
[1641733769187,0.00020705,41765.0,41760.0,0.11975797]
[1641733769838,0.70343086,41767.0,41761.0,0.059876]
[1641733770038,0.00020728,41765.0,41760.0,0.13674831]
[1641733770238,0.00020728,41765.0,41763.0,0.059875]
[1641733771037,0.00020728,41766.0,41763.0,0.059875]
[1641733771839,0.00020728,41766.0,41763.0,0.063875]
[1641733772038,0.70343086,41767.0,41763.0,0.063875]
[1641733772236,0.70363814,41767.0,41763.0,0.004]
[1641733773138,0.70343086,41767.0,41762.0,0.11975055]
[1641733773338,0.70363813,41767.0,41762.0,0.11975055]
[1641733773585,0.70363813,41767.0,41764.0,0.0598743]
[1641733774387,0.70343086,41767.0,41764.0,0.0598743]
[1641733775487,0.70343086,41767.0,41764.0,0.1197483]
[1641733775691,0.5,41766.0,41758.0,0.01887424]
[1641733775888,0.5,41766.0,41758.0,0.06887424]
[1641733776090,0.5,41766.0,41758.0,0.01887424]
[1641733776492,0.00020726,41764.0,41758.0,0.01887424]
[1641733776688,0.00020726,41764.0,41761.0,0.059874]
[1641733776890,0.00020726,41764.0,41762.0,0.02853515]
[1641733777536,0.5,41766.0,41762.0,0.02853515]
[1641733777736,0.00020726,41765.0,41762.0,0.08840915]
[1641733777937,0.00020726,41765.0,41764.0,0.001]
[1641733778738,0.70363812,41767.0,41764.0,0.001]
[1641733779136,0.70363812,41767.0,41762.0,0.059874]
[1641733779740,0.70343086,41767.0,41762.0,0.059874]
[1641733779939,0.70363812,41767.0,41762.0,0.067874]
[1641733780139,0.70363812,41767.0,41764.0,0.059874]
[1641733780993,0.70343086,41767.0,41764.0,0.059874]
[1641733781790,0.70343086,41767.0,41764.0,0.062874]
[1641733783191,0.70343086,41767.0,41764.0,0.059874]
[1641733783792,0.70343086,41767.0,41764.0,0.061874]
[1641733785037,0.70343086,41767.0,41764.0,0.059874]
[1641733785235,0.70343086,41767.0,41762.0,0.059874]
[1641733785637,0.70343086,41767.0,41761.0,0.05987786]
[1641733785836,0.70343086,41767.0,41762.0,0.019]
[1641733786436,0.70363812,41767.0,41762.0,0.019]
[1641733786837,0.70363812,41767.0,41762.0,0.07887497]
[1641733787136,0.70363812,41767.0,41762.0,0.05987497]
[1641733787940,0.70363812,41767.0,41762.0,0.12174997]
[1641733788144,1.70363812,41767.0,41763.0,0.059876]
[1641733789186,2.10686475,41767.0,41763.0,0.059876]
[1641733789587,0.385238,41766.0,41761.0,0.05987751]
[1641733789790,0.385238,41766.0,41761.0,0.11975751]
[1641733789987,0.385238,41766.0,41763.0,0.002]
[1641733790388,0.78846463,41766.0,41763.0,0.002]
[1641733791288,0.40322663,41765.0,41758.0,0.119754]
[1641733791486,0.40322663,41765.0,41753.0,0.79929987]
[1641733791487,0.4,41764.0,41753.0,0.79929987]
[1641733791687,0.4,41764.0,41754.0,0.1]
[1641733791888,0.00020727,41761.0,41758.0,0.047]
[1641733792739,0.00020727,41761.0,41758.0,0.226619]
[1641733792937,0.73588236,41764.0,41759.0,0.05987316]
[1641733793137,0.73588236,41764.0,41758.0,0.226619]
[1641733793138,0.00020727,41762.0,41760.0,0.119746]
[1641733793934,0.00320727,41762.0,41761.0,0.05987316]
[1641733794135,0.94012684,41761.0,41760.0,0.27249231]
[1641733794936,0.94012684,41761.0,41760.0,0.33236531]
[1641733795341,0.94012684,41761.0,41760.0,0.29936531]
[1641733795984,0.94312684,41761.0,41760.0,0.32836531]
[1641733797188,0.94012684,41761.0,41760.0,0.29936531]
[1641733797990,0.94512684,41761.0,41760.0,0.31636531]
[1641733799188,0.94012684,41761.0,41760.0,0.29936531]
[1641733799590,0.94012684,41761.0,41760.0,0.34936531]
[1641733800036,0.94012684,41761.0,41760.0,0.47336531]
[1641733801236,0.94012684,41761.0,41760.0,0.44936531]
[1641733802038,0.94012684,41761.0,41760.0,0.48036531]
[1641733802238,0.94012684,41761.0,41760.0,0.88796518]
[1641733802636,0.94012684,41761.0,41760.0,0.48036531]
[1641733803240,0.94012684,41761.0,41760.0,0.44936531]
[1641733803486,0.94012684,41761.0,41760.0,0.95886515]
[1641733803684,0.94012684,41761.0,41760.0,0.83911884]
[1641733803883,0.94412684,41761.0,41760.0,0.86011884]
[1641733805287,0.94012684,41761.0,41760.0,0.83911884]
[1641733805989,0.94012684,41761.0,41760.0,0.360619]
[1641733805990,0.94212684,41761.0,41760.0,0.360619]
[1641733806187,0.94212684,41761.0,41760.0,0.76850081]
[1641733806389,0.94212684,41761.0,41760.0,0.66850081]
[1641733806587,0.94212684,41761.0,41760.0,0.76850081]
[1641733807089,0.94212684,41761.0,41760.0,0.360619]
[1641733807341,0.94012684,41761.0,41760.0,0.329619]
[1641733807549,0.94012684,41761.0,41760.0,0.229619]
[1641733807747,0.94012684,41761.0,41760.0,0.63753182]
[1641733807946,0.94412684,41761.0,41760.0,0.75753182]
[1641733808145,0.94412684,41761.0,41760.0,0.349619]
[1641733808553,0.94412684,41761.0,41760.0,0.75753377]
[1641733808948,0.94412684,41761.0,41760.0,0.349619]
[1641733809147,0.94012684,41761.0,41760.0,0.329619]
[1641733809348,0.94012684,41761.0,41760.0,0.73752895]
[1641733809747,0.94012684,41761.0,41760.0,0.329619]
[1641733809947,0.94812684,41761.0,41760.0,0.342619]
[1641733810348,0.94812684,41761.0,41760.0,0.7505293]
[1641733810549,0.85409343,41761.0,41760.0,0.7505293]
[1641733810750,0.85409343,41761.0,41760.0,0.342619]
[1641733810989,0.85409343,41761.0,41760.0,0.75052493]
[1641733811185,0.84609343,41761.0,41760.0,0.73752493]
[1641733811585,0.84609343,41761.0,41760.0,0.58159417]
[1641733811983,0.84609343,41761.0,41760.0,0.60759417]
[1641733812385,0.84609343,41761.0,41760.0,1.40759417]
[1641733812785,0.41240164,41761.0,41760.0,1.65759417]
[1641733812984,0.41240164,41761.0,41760.0,2.11623945]
[1641733813186,0.41240164,41761.0,41760.0,2.09023945]
[1641733813592,0.41240164,41761.0,41760.0,2.43433234]
[1641733813984,0.41240164,41761.0,41760.0,2.47233234]
[1641733815239,0.41240164,41761.0,41760.0,3.14785932]
[1641733815639,0.00020727,41763.0,41761.0,1.16970907]
[1641733815839,0.00020727,41763.0,41762.0,1.37211509]
[1641733816042,0.40577449,41774.0,41762.0,1.57211509]
[1641733816239,0.00082892,41770.0,41766.0,0.11970474]
[1641733816442,0.00082892,41770.0,41767.0,0.119704]
[1641733816641,0.00082892,41770.0,41769.0,0.30262007]
[1641733817040,0.00082892,41770.0,41769.0,0.50262007]
[1641733817240,0.00020724,41772.0,41769.0,0.50262007]
[1641733817440,0.00020724,41772.0,41770.0,0.23941522]
[1641733818041,0.00220724,41772.0,41770.0,0.057]
[1641733818241,0.002,41772.0,41770.0,0.057]
[1641733818692,0.002,41772.0,41771.0,0.059854]
[1641733819293,0.00020724,41773.0,41771.0,0.059854]
[1641733819491,0.00020724,41774.0,41771.0,0.179558]
[1641733819690,0.00020724,41774.0,41771.0,0.119704]
[1641733819891,0.00020724,41774.0,41772.0,0.179556]
[1641733820090,0.00020724,41774.0,41772.0,0.23940645]
[1641733820292,0.00020724,41774.0,41773.0,0.059852]
[1641733820590,0.00020724,41775.0,41773.0,0.059852]
[1641733820991,0.00020724,41775.0,41773.0,0.119708]
[1641733821694,0.00084393,41776.0,41774.0,0.059856]
[1641733821891,0.00084393,41776.0,41774.0,0.11971072]
[1641733822092,0.01,41775.0,41774.0,0.11971072]
[1641733822735,0.01,41775.0,41774.0,0.17956672]
[1641733823737,0.0006367,41776.0,41774.0,0.17956672]
[1641733824036,1.01,41775.0,41774.0,0.069856]
[1641733824240,1.55759909,41775.0,41774.0,0.01]
[1641733824839,1.96337358,41775.0,41774.0,0.01]
[1641733825237,0.36447411,41764.0,41763.0,0.05]
[1641733825438,0.36447411,41764.0,41763.0,0.159867]
[1641733825639,0.36447411,41764.0,41763.0,0.059867]
[1641733825995,0.36447411,41764.0,41763.0,0.136867]
[1641733827296,0.36447411,41764.0,41763.0,0.059867]
[1641733827995,0.36447411,41764.0,41763.0,0.083867]
[1641733829197,0.36447411,41764.0,41763.0,0.059867]
[1641733830034,0.36447411,41764.0,41763.0,0.080867]
[1641733831838,0.36447411,41764.0,41763.0,0.059867]
[1641733832038,0.36447411,41764.0,41763.0,0.071867]
[1641733833040,0.08561006,41759.0,41758.0,0.40765962]
[1641733833236,0.08561006,41759.0,41758.0,0.45765962]
[1641733833493,0.08561006,41759.0,41758.0,0.60765962]
[1641733833694,0.08561006,41759.0,41758.0,0.66753362]
[1641733834097,0.08561006,41759.0,41758.0,0.68853362]
[1641733834700,0.08561006,41759.0,41758.0,0.79046363]
[1641733834896,0.08561006,41759.0,41758.0,1.02859977]
[1641733835296,0.08561006,41759.0,41758.0,1.00759977]
[1641733835998,0.08561006,41759.0,41758.0,0.79046363]
[1641733837436,0.08561006,41759.0,41758.0,0.76946363]
[1641733837937,0.08561006,41759.0,41758.0,1.00720625]
[1641733838135,0.08561006,41759.0,41758.0,1.02920625]
[1641733838336,0.08561006,41759.0,41758.0,0.51961662]
[1641733838535,0.073537,41759.0,41758.0,0.51961662]
[1641733838736,0.073537,41759.0,41758.0,1.56961662]
[1641733838935,0.073537,41759.0,41758.0,0.51961662]
[1641733839136,0.073537,41759.0,41758.0,0.86961662]
[1641733839336,0.073537,41759.0,41758.0,0.49761662]
[1641733839942,0.073537,41759.0,41758.0,0.51861662]
[1641733841090,1.073537,41759.0,41758.0,1.13020152]
[1641733841288,1.073537,41759.0,41758.0,1.10920152]
[1641733842088,1.073537,41759.0,41758.0,1.13020152]
[1641733843289,1.073537,41759.0,41758.0,1.10920152]
[1641733844090,1.073537,41759.0,41758.0,1.13220152]
[1641733845243,1.073537,41759.0,41758.0,1.10920152]
[1641733846144,1.073537,41759.0,41758.0,1.13220152]
[1641733847143,1.073537,41759.0,41758.0,0.8944589]
[1641733847343,1.073537,41759.0,41758.0,1.10587988]
[1641733848146,1.073537,41759.0,41758.0,1.12887988]
[1641733848345,1.073537,41759.0,41758.0,0.51729498]
[1641733848992,1.073537,41759.0,41758.0,1.01729498]
[1641733849190,1.073537,41759.0,41758.0,0.99429498]
[1641733849689,1.073537,41759.0,41758.0,0.49429498]
[1641733850093,1.073537,41759.0,41758.0,0.51729498]
[1641733850692,0.594677,41759.0,41758.0,1.56729498]
[1641733850893,0.594677,41759.0,41758.0,3.03652629]
[1641733851093,0.25552766,41759.0,41758.0,3.13652629]
[1641733851292,0.40498228,41772.0,41763.0,0.059847]
[1641733851492,0.00082896,41767.0,41764.0,0.30626128]
[1641733851691,0.00082896,41767.0,41766.0,1.62705516]
[1641733851892,0.00082896,41767.0,41766.0,1.74675161]
[1641733852091,0.00082896,41767.0,41766.0,1.94675161]
[1641733852339,0.40561898,41776.0,41771.0,0.11969]
[1641733852538,0.00207155,41773.0,41772.0,0.059844]
[1641733852939,0.00207155,41773.0,41772.0,0.17953198]
[1641733853139,0.00175267,41773.0,41772.0,0.17953198]
[1641733853942,0.00175267,41773.0,41772.0,0.29922298]
[1641733854142,0.00175267,41773.0,41772.0,0.67706798]
[1641733854342,0.00011074,41775.0,41772.0,0.67706798]
[1641733854543,0.00011074,41775.0,41773.0,0.059849]
[1641733854742,0.00074744,41776.0,41773.0,0.059849]
[1641733855144,0.00074744,41776.0,41774.0,0.059848]
[1641733855345,0.00074744,41776.0,41775.0,0.11968433]
[1641733855743,0.0006367,41776.0,41775.0,0.11968433]
[1641733855990,0.0006367,41776.0,41775.0,0.52968433]
[1641733857194,0.0006367,41776.0,41775.0,0.72968433]
[1641733857393,0.0006367,41776.0,41775.0,0.71968433]
[1641733857996,0.0006367,41776.0,41775.0,0.73668433]
[1641733859943,0.0006367,41776.0,41775.0,0.71968433]
[1641733860143,0.0006367,41776.0,41775.0,0.73868433]
[1641733860546,0.0006367,41776.0,41775.0,0.33868433]
[1641733860743,0.0006367,41776.0,41775.0,0.23868433]
[1641733860944,0.0006367,41776.0,41775.0,0.33868433]
[1641733861545,0.0006367,41776.0,41775.0,0.31968433]
[1641733862044,0.0006367,41776.0,41775.0,0.23868433]
[1641733862444,0.0006367,41776.0,41775.0,0.13868433]
[1641733863886,0.0006367,41776.0,41775.0,0.11968433]
[1641733864086,0.0006367,41776.0,41775.0,0.16968433]
[1641733865292,0.0006367,41776.0,41775.0,0.11968433]
[1641733866094,0.0016367,41776.0,41775.0,0.47568433]
[1641733866296,0.0016367,41776.0,41775.0,0.17568433]
[1641733866695,0.0016367,41776.0,41775.0,0.67568433]
[1641733867335,0.0006367,41776.0,41775.0,0.61968433]
[1641733867736,0.0006367,41776.0,41775.0,0.11968433]
[1641733867937,0.0006367,41776.0,41774.0,0.059848]
[1641733868137,0.0006367,41776.0,41775.0,0.073]
[1641733868741,0.11970616,41781.0,41775.0,0.073]
[1641733868940,0.23891196,41777.0,41775.0,0.073]
[1641733869138,0.2334106,41777.0,41775.0,0.073]
[1641733869339,0.2334106,41777.0,41774.0,0.059848]
[1641733870142,0.10998486,41776.0,41774.0,0.018]
[1641733870345,1.035238,41775.0,41774.0,0.018]
[1641733870543,1.10745444,41775.0,41774.0,0.0001]
[1641733870845,0.6,41774.0,41773.0,0.0006367]
[1641733871093,1.48518145,41774.0,41773.0,0.0006367]
[1641733871293,0.19195393,41775.0,41773.0,0.0006367]
[1641733871294,0.07221644,41775.0,41773.0,0.0006367]
[1641733871494,0.07221644,41775.0,41766.0,0.02869458]
[1641733871691,0.07221644,41775.0,41763.0,0.24217131]
[1641733871893,0.07221644,41775.0,41763.0,0.69980721]
[1641733872091,0.07521644,41775.0,41766.0,0.044]
[1641733872294,0.07521644,41775.0,41770.0,0.059859]
[1641733873092,0.07521644,41775.0,41769.0,0.11972]
[1641733873292,0.07521644,41775.0,41772.0,0.059861]
[1641733873293,0.07221644,41775.0,41772.0,0.059861]
[1641733873494,0.07221644,41775.0,41770.0,0.00020476]
[1641733873892,0.3582104,41773.0,41770.0,0.00020476]
[1641733874091,0.3582104,41773.0,41770.0,0.01720476]
[1641733874492,0.3582104,41773.0,41770.0,0.076865]
[1641733874742,0.07321644,41775.0,41770.0,0.076865]
[1641733874942,0.07321644,41775.0,41771.0,0.059863]
[1641733875143,0.07321644,41775.0,41770.0,0.017]
[1641733875342,0.07221644,41775.0,41769.0,0.11992776]
[1641733875543,0.07221644,41775.0,41769.0,0.119723]
[1641733875743,0.07221644,41775.0,41770.0,0.00020877]
[1641733876145,0.07721644,41775.0,41772.0,0.059863]
[1641733876342,0.07721644,41775.0,41770.0,0.00020877]
[1641733877346,0.07221644,41775.0,41770.0,0.00020877]
[1641733877745,0.07221644,41775.0,41767.0,0.059865]
[1641733877946,0.07221644,41775.0,41770.0,0.00019676]
[1641733878146,0.2851459,41771.0,41770.0,0.01519676]
[1641733878891,0.2851459,41771.0,41770.0,0.015]
[1641733879293,0.2851459,41771.0,41769.0,0.059867]
[1641733880293,0.2851459,41771.0,41769.0,0.069867]
[1641733880492,0.28451618,41771.0,41769.0,0.069867]
[1641733881893,0.28451618,41771.0,41769.0,0.059867]
[1641733882093,0.28451618,41771.0,41769.0,0.063867]
[1641733882541,0.28451618,41771.0,41769.0,0.004]
[1641733882542,0.65542064,41770.0,41769.0,0.004]
[1641733882940,0.65962068,41770.0,41769.0,0.004]
[1641733883442,0.72366372,41770.0,41767.0,0.00019732]
[1641733883642,0.445119,41769.0,41767.0,0.00019732]
[1641733883943,1.09140031,41768.0,41767.0,0.00019732]
[1641733884142,1.18646622,41768.0,41767.0,0.00019732]
[1641733884339,1.18646622,41768.0,41758.0,0.4675189]
[1641733884541,0.059882,41767.0,41765.0,0.00019735]
[1641733884739,0.835238,41766.0,41765.0,0.00019735]
[1641733885544,0.835238,41766.0,41758.0,0.059879]
[1641733885742,0.45,41766.0,41763.0,0.00019736]
[1641733885997,0.261409,41764.0,41763.0,0.00019736]
[1641733886601,0.261409,41764.0,41758.0,0.035]
[1641733886800,0.261409,41764.0,41761.0,0.00020869]
[1641733887099,0.261409,41764.0,41761.0,0.06008669]
[1641733887700,0.261409,41764.0,41761.0,0.059878]
[1641733888201,0.266409,41764.0,41761.0,0.083878]
[1641733889405,0.261409,41764.0,41761.0,0.059878]
[1641733889603,0.261409,41764.0,41761.0,0.17962714]
[1641733889840,0.261409,41764.0,41762.0,0.059875]
[1641733890240,0.268409,41764.0,41762.0,0.059875]
[1641733890742,0.007,41764.0,41762.0,0.11974781]
[1641733890940,0.007,41764.0,41763.0,0.385226]
[1641733891441,0.00122742,41768.0,41763.0,0.385226]
[1641733891643,0.2882,41770.0,41765.0,0.11973649]
[1641733891848,0.25262027,41771.0,41763.0,0.05]
[1641733892041,0.25262027,41771.0,41762.0,0.43363159]
[1641733892242,0.012,41770.0,41765.0,0.00019672]
[1641733892641,0.012,41770.0,41767.0,0.059867]
[1641733893341,0.25262027,41771.0,41768.0,0.059866]
[1641733893598,0.385226,41770.0,41768.0,0.059866]
[1641733893798,0.25262027,41771.0,41768.0,0.059866]
[1641733893998,0.25262027,41771.0,41769.0,0.059867]
[1641733894200,0.385226,41770.0,41769.0,0.059867]
[1641733894401,0.25262027,41771.0,41769.0,0.059867]
[1641733895400,0.25262027,41771.0,41769.0,0.1197311]
[1641733895601,1.0365134,41770.0,41768.0,0.00019392]
[1641733896400,1.09639348,41770.0,41768.0,0.00019392]
[1641733896598,0.38378103,41769.0,41767.0,0.00019761]
[1641733896800,0.835226,41768.0,41767.0,0.00019761]
[1641733897641,0.26493128,41761.0,41757.0,0.059879]
[1641733897843,0.26493128,41761.0,41758.0,0.445105]
[1641733898041,0.26493128,41761.0,41759.0,0.05988]
[1641733898243,0.27193128,41761.0,41759.0,0.05988]
[1641733898842,0.22330406,41760.0,41759.0,0.05988]
[1641733899042,0.27193128,41761.0,41759.0,0.05988]
[1641733899242,0.49982693,41761.0,41759.0,0.05988]
[1641733899443,0.22349153,41760.0,41759.0,0.05988]
[1641733900243,0.22849153,41760.0,41759.0,0.05988]
[1641733901388,0.23466978,41760.0,41759.0,0.05988]
[1641733901590,0.27008949,41764.0,41759.0,0.05988]
[1641733901788,0.27008949,41764.0,41759.0,0.01717883]
[1641733902093,0.27008949,41764.0,41759.0,0.01737653]
[1641733902094,0.41385692,41762.0,41759.0,0.01737653]
[1641733902291,0.24859145,41761.0,41759.0,0.0001977]
[1641733903190,0.33700145,41761.0,41758.0,0.00019734]
[1641733903390,0.385226,41760.0,41758.0,0.00019734]
[1641733903593,1.1937738,41759.0,41758.0,0.00019734]
[1641733903790,1.5789998,41759.0,41758.0,0.00019734]
[1641733903991,1.89863305,41759.0,41758.0,0.00019734]
[1641733904192,2.00863305,41759.0,41749.0,0.4076359]
[1641733904493,0.44512,41758.0,41756.0,0.00019735]
[1641733904743,0.90241972,41757.0,41756.0,0.00019735]
[1641733904946,1.28764572,41757.0,41756.0,0.00019735]
[1641733905348,1.28764572,41757.0,41751.0,0.059893]
[1641733905544,0.385226,41756.0,41754.0,0.00019736]
[1641733905744,0.53872057,41755.0,41754.0,0.00019736]
[1641733905944,0.92394657,41755.0,41754.0,0.00019736]
[1641733906544,0.92394657,41755.0,41752.0,0.00019738]
[1641733906746,0.385226,41754.0,41752.0,0.00019738]
[1641733906947,0.23601258,41753.0,41752.0,0.00019738]
[1641733907145,0.62123858,41753.0,41752.0,0.00019738]
[1641733907345,0.385226,41753.0,41752.0,0.00019738]
[1641733907548,0.385226,41753.0,41750.0,0.00019741]
[1641733907845,0.23860676,41753.0,41750.0,0.00019741]
[1641733908046,0.27056221,41756.0,41750.0,0.06009141]
[1641733908345,0.003,41753.0,41750.0,0.06009141]
[1641733908597,0.003,41753.0,41750.0,0.059894]
[1641733909397,0.27056221,41756.0,41750.0,0.059894]
[1641733909809,0.27056221,41756.0,41751.0,0.00019741]
[1641733910302,0.27656221,41756.0,41751.0,0.06008941]
[1641733910698,0.385226,41755.0,41751.0,0.06008941]
[1641733911099,0.385226,41755.0,41751.0,0.00019741]
[1641733912243,0.395226,41755.0,41751.0,0.00019741]
[1641733913645,0.385226,41755.0,41751.0,0.00019741]
[1641733914044,1.385226,41755.0,41751.0,0.00019741]
[1641733914244,1.395226,41755.0,41751.0,0.00019741]
[1641733914648,0.31304686,41752.0,41751.0,0.00019741]
[1641733915046,0.07224948,41752.0,41751.0,0.00019741]
[1641733915244,0.07224948,41752.0,41750.0,0.059894]
[1641733915447,0.57669072,41751.0,41750.0,0.059894]
[1641733915647,0.35,41751.0,41750.0,0.059894]
[1641733915849,0.07224948,41752.0,41750.0,0.059894]
[1641733916293,0.005,41751.0,41750.0,0.059894]
[1641733916892,0.005,41751.0,41747.0,0.05599901]
[1641733917292,0.31298466,41750.0,41747.0,0.05599901]
[1641733917493,0.31298466,41750.0,41748.0,0.059894]
[1641733917891,0.31298466,41750.0,41748.0,0.11978822]
[1641733918296,0.31998466,41750.0,41748.0,0.11978822]
[1641733919393,0.31998466,41750.0,41748.0,0.17968022]
[1641733919843,0.31298466,41750.0,41748.0,0.17968022]
[1641733920242,0.31898466,41750.0,41748.0,0.17968022]
[1641733921543,0.31298466,41750.0,41748.0,0.17968022]
[1641733922342,0.31898466,41750.0,41748.0,0.17968022]
[1641733922744,0.006,41750.0,41749.0,0.385226]
[1641733923595,0.07224948,41752.0,41750.0,0.059888]
[1641733924295,0.07824948,41752.0,41750.0,0.102888]
[1641733924496,0.006,41752.0,41750.0,0.102888]
[1641733925501,1.30990697,41755.0,41750.0,0.059888]
[1641733925700,1.30990697,41755.0,41753.0,0.11977365]
[1641733926301,1.31690697,41755.0,41753.0,0.14577365]
[1641733926701,1.007,41755.0,41753.0,0.20565965]
[1641733927101,1.007,41755.0,41754.0,0.29231889]
[1641733927351,1.007,41755.0,41754.0,0.2927627]
[1641733927551,1.0,41755.0,41754.0,0.6779887]
[1641733927752,1.0,41755.0,41754.0,1.39906223]
[1641733928350,1.0,41755.0,41754.0,0.91115758]
[1641733929351,1.0,41755.0,41754.0,0.86115758]
[1641733929951,1.0,41755.0,41754.0,0.417226]
[1641733930154,1.0,41755.0,41754.0,0.385226]
[1641733930453,1.001,41755.0,41754.0,0.456226]
[1641733931393,1.001,41755.0,41754.0,0.385226]
[1641733931593,1.0,41755.0,41754.0,0.385226]
[1641733931794,1.0,41755.0,41753.0,0.23954665]
[1641733931795,0.2439727,41763.0,41755.0,1.085226]
[1641733931997,0.2439727,41763.0,41755.0,0.759883]
[1641733932197,0.2765989,41764.0,41756.0,0.6]
[1641733932398,0.2765989,41764.0,41757.0,0.059882]
[1641733932597,0.385226,41763.0,41757.0,0.059882]
[1641733933199,0.385226,41763.0,41758.0,0.059883]
[1641733933397,0.385226,41763.0,41757.0,0.059883]
[1641733933599,0.385226,41763.0,41754.0,0.119764]
[1641733933800,0.2765989,41764.0,41754.0,0.119764]
[1641733934197,0.001,41763.0,41757.0,0.25497488]
[1641733934400,0.001,41763.0,41760.0,0.119748]
[1641733934597,0.001,41763.0,41760.0,0.179621]
[1641733934885,0.001,41763.0,41760.0,0.119748]
[1641733935285,0.001,41763.0,41761.0,0.11974603]
[1641733935486,0.0015011,41766.0,41761.0,0.17961903]
[1641733935686,0.0002072,41766.0,41762.0,0.179613]
[1641733935888,0.0002072,41766.0,41762.0,0.299354]
[1641733936089,0.71982987,41769.0,41762.0,0.299354]
[1641733936286,0.71982987,41769.0,41762.0,0.301354]
[1641733936287,0.01720721,41766.0,41762.0,0.301354]
[1641733936686,0.01720721,41766.0,41763.0,0.059871]
[1641733936987,0.01720721,41766.0,41765.0,0.059872]
[1641733937189,0.017,41766.0,41765.0,0.059872]
[1641733937589,0.00020721,41767.0,41765.0,0.059872]
[1641733938191,0.02120721,41767.0,41765.0,0.059872]
[1641733938392,0.021,41767.0,41765.0,0.059872]
[1641733938797,0.021,41767.0,41765.0,0.119743]
[1641733939396,0.021,41767.0,41765.0,0.059872]
[1641733939597,0.00020721,41768.0,41765.0,0.059872]
[1641733939898,0.00020721,41768.0,41762.0,0.119742]
[1641733940298,0.00820721,41768.0,41765.0,0.006]
[1641733940499,0.008,41768.0,41765.0,0.006]
[1641733940696,0.38543321,41767.0,41765.0,0.006]
[1641733941499,0.38543321,41767.0,41763.0,0.11975]
[1641733941697,0.40600223,41770.0,41762.0,0.05987478]
[1641733941898,0.00020721,41768.0,41764.0,0.059874]
[1641733942098,0.00020721,41768.0,41764.0,0.119747]
[1641733942344,0.00020721,41768.0,41764.0,0.059874]
[1641733942746,0.006,41770.0,41764.0,0.059874]
[1641733942945,0.00020721,41768.0,41764.0,0.059874]
[1641733943144,0.00020721,41768.0,41765.0,0.119745]
[1641733943847,0.40600223,41771.0,41765.0,0.119743]
[1641733944050,0.00020721,41769.0,41765.0,0.059871]
[1641733944247,0.398226,41768.0,41765.0,0.059871]
[1641733944448,0.398226,41768.0,41766.0,0.059871]
[1641733944649,0.398226,41768.0,41761.0,0.35923]
[1641733944848,0.013,41768.0,41761.0,0.35923]
[1641733945248,0.00020721,41767.0,41761.0,0.35923]
[1641733945449,0.00020721,41767.0,41764.0,0.1197444]
[1641733945649,0.00020721,41767.0,41764.0,0.1796174]
[1641733946102,0.40600223,41771.0,41764.0,0.1796174]
[1641733946298,0.013,41767.0,41764.0,0.1796174]
[1641733946499,0.013,41767.0,41765.0,0.059873]
[1641733947100,0.003,41767.0,41765.0,0.059873]
[1641733947301,0.385226,41766.0,41759.0,0.03278095]
[1641733947501,0.00020721,41768.0,41761.0,0.05]
[1641733947901,0.00020721,41768.0,41764.0,0.119737]
[1641733948099,0.00020721,41768.0,41765.0,0.059865]
[1641733948300,0.00020721,41768.0,41766.0,0.059864]
[1641733948301,0.00220721,41768.0,41766.0,0.059864]
[1641733949402,0.002,41768.0,41766.0,0.059864]
[1641733949847,0.0002072,41769.0,41766.0,0.17959189]
[1641733950047,0.0002072,41769.0,41766.0,0.11972789]
[1641733950249,0.014,41768.0,41766.0,0.065864]
[1641733951549,0.2932,41774.0,41767.0,0.11972555]
[1641733951751,0.0002072,41769.0,41767.0,0.059863]
[1641733951949,0.0002072,41769.0,41767.0,0.179587]
[1641733952350,0.0262072,41769.0,41767.0,0.182587]
[1641733952649,0.026,41769.0,41767.0,0.182587]
[1641733953249,0.026,41769.0,41767.0,0.24244785]
[1641733954096,0.0002072,41770.0,41767.0,0.23944785]
[1641733954297,0.012,41769.0,41767.0,0.24144785]
[1641733956501,0.012,41769.0,41767.0,0.24244785]
[1641733957543,0.0002072,41770.0,41767.0,0.23944785]
[1641733957744,0.0002072,41770.0,41768.0,0.059867]
[1641733958144,0.27916586,41772.0,41768.0,0.059867]
[1641733958446,0.3854332,41771.0,41768.0,0.059867]
[1641733959044,0.3854332,41771.0,41766.0,0.059872]
[1641733959243,0.3854332,41771.0,41765.0,0.059872]
[1641733959244,0.385226,41771.0,41765.0,0.059872]
[1641733959844,0.22813578,41768.0,41761.0,0.409845]
[1641733960051,0.22813578,41768.0,41761.0,0.119745]
[1641733960245,0.22813578,41768.0,41765.0,0.001]
[1641733960448,0.00020721,41767.0,41765.0,0.001]
[1641733961102,0.385226,41766.0,41765.0,0.001]
[1641733961499,0.385226,41766.0,41763.0,0.119752]
[1641733961703,0.24323412,41765.0,41763.0,0.059876]
[1641733962003,0.24323412,41765.0,41757.0,0.239509]
[1641733962401,0.24323412,41765.0,41761.0,0.059879]
[1641733963204,0.65,41764.0,41754.0,0.73644029]
[1641733963501,0.07223633,41761.0,41755.0,0.385226]
[1641733964302,0.07223633,41761.0,41755.0,0.391226]
[1641733965551,0.07223633,41761.0,41755.0,0.385226]
[1641733966353,0.07223633,41761.0,41755.0,0.394226]
[1641733966553,0.07223633,41761.0,41755.0,0.8018619]